Cogmind - Beta 10.2 @@@ ROGUE MODE // 2020.11.07 @ 21:31:37 Player: Ty Result: Destroyed by G-50 Soldier with Heavy Laser Performance ------------- Evolutions (2) 1000 Regions Visited (3) 600 Robots Destroyed (13) 65 Value Destroyed (299) 299 Prototype IDs (1) 20 Alien Tech Used (0) 0 Bonus (0) 0 TOTAL SCORE: 1984 Bonus ------- None Cogmind --------- Core Integrity 0/550 Matter 102/300 Energy 75/100 System Corruption 0% Temperature Cool (9) Movement Core (100) Ox1 Location -8/Materials Parts ------- > --- POWER (2) -------- (None) > --- PROPULSION (2) --- (None) > --- UTILITY (4) ------ Transmission Jammer > --- WEAPON (3) ------- High-powered Shotgun > --- INVENTORY (4) ---- Large Matter Pod (0) Large Matter Pod (0) Terrain Scanner Peak State ------------ > --- POWER ------------ (None) > --- PROPULSION ------- (None) > --- UTILITY ---------- Terrain Scan Processor Transmission Jammer Improved Medium Armor Plating Improved Medium Armor Plating > --- WEAPON ----------- (None) > --- INVENTORY -------- Large Matter Pod Large Matter Pod Terrain Scanner Improved Medium Armor Plating [Rating: 13] Favorites ----------- Power Light Ion Engine Engine Light Ion Engine Propulsion Aluminum Leg Leg Aluminum Leg Utility Terrain Scan Processor Device Terrain Scanner Storage Large Matter Pod Processor Terrain Scan Processor Protection Improved Medium Armor Plating Weapon Grenade Launcher Energy Gun Improved Medium Laser Ballistic Gun Light Assault Rifle Launcher Grenade Launcher Special Weapon Mining Laser Build | -11 -10 -9 -8 ------- Run | Scr Mat Mat Mat Slots Evolved 4 | . . 2 2 Power 1 | . . . 1 Propulsion . | . . . . Utility 2 | . . 2 . Weapon 1 | . . . 1 Parts Attached 17 | 6 3 2 6 Power 1 | 1 . . . Engine 1 | 1 . . . Core . | . . . . Reactor . | . . . . Propulsion 2 | 2 . . . Treads . | . . . . Leg 2 | 2 . . . Wheel . | . . . . Hover . | . . . . Flight . | . . . . Utility 8 | 1 2 1 4 Device 2 | . 1 . 1 Storage 2 | 1 . 1 . Processor 2 | . 1 . 1 Hackware . | . . . . Protection 2 | . . . 2 Artifact . | . . . . Weapon 6 | 2 1 1 2 Energy Gun 2 | 1 . 1 . Energy Cannon . | . . . . Ballistic Gun 2 | 1 . . 1 Ballistic Cannon . | . . . . Launcher 1 | . 1 . . Special Weapon 1 | . . . 1 Impact Weapon . | . . . . Slashing Weapon . | . . . . Piercing Weapon . | . . . . Special Melee Weapon . | . . . . Unidentified Prototypes 1 | . . 1 . Parts Lost 10 | . . 3 7 Power 1 | . . . 1 Propulsion 2 | . . . 2 Utility 3 | . . . 3 Weapon 4 | . . 3 1 Highest Loss Streak 4 | . . 2 4 Average Slot Usage (%) 72 | . 90 82 41 Engine 9 | . 14 11 3 Leg 19 | . 28 22 7 Device 9 | . 4 11 11 Storage 8 | . 9 9 5 Processor 8 | . 4 11 8 Energy Gun 2 | . 2 4 . Ballistic Gun 5 | . 14 3 . Launcher 7 | . 11 10 . Naked Turns . | . . . . Heaviest Build 15 | 10 11 13 15 Greatest Support 20 | 20 20 20 20 Greatest Overweight (x) 4 | . . . 4 Average Overweight (x) . | . . . . Largest Inventory Capacity 6 | 6 6 4 4 Average Capacity 4 | 4 5 4 4 Most Carried 4 | 4 3 3 4 Average Carried 1 | . . . 2 Final Capacity 6 | 6 4 4 4 Final Carried 3 | . . 1 3 Class Distribution -------------------- 100% | Mutant Dominant Class ---------------- Mutant | -10/Materials Mutant | -9/Materials Mutant | -8/Materials Resources | -11 -10 -9 -8 ----------- Run | Scr Mat Mat Mat Matter Collected 297 | 154 69 74 . Remotely . | . . . . Salvage Created 306 | . 150 117 39 Parts 20 | . 14 4 2 Haulers Intercepted 2 | . 1 1 . Recyclers Shooed 1 | . . 1 . Parts Field Recycled . | . . . . Retrieved Matter . | . . . . Parts Self-Destructed . | . . . . Prevented . | . . . . Kills | -11 -10 -9 -8 ------- Run | Scr Mat Mat Mat Combat Hostiles Destroyed 6 | . 2 3 1 Guns 1 | . . . 1 AOE 5 | . 2 3 . Classes Destroyed 6 | . 5 1 . Worker 1 | . 1 . . Builder 2 | . 2 . . Hauler 2 | . 1 1 . Watcher 2 | . 2 . . Grunt 4 | . 2 1 1 Sentry 2 | . . 2 . Best Kill Streak 6 | . 6 2 1 Combat Bots Only 2 | . 2 2 1 Max Kills in Single Turn 3 | . 3 1 1 Gunslinging . | . . . . Exploded 1 | . 1 1 . Melee . | . . . . Uniques/NPCs Destroyed . | . . . . Combat | -11 -10 -9 -8 -------- Run | Scr Mat Mat Mat Damage Taken 1681 | . 44 330 1307 Core 637 | . 14 68 555 Absorbed by Shields . | . . . . Core Remaining (%) 92 | 100 94 83 . Volleys Fired 27 | . 8 11 8 Largest 1 | . 1 1 1 Hottest 100 | . 30 30 100 Shots Fired 27 | . 8 11 8 Gun 7 | . . . 7 Cannon . | . . . . Launcher 19 | . 8 11 . Special 1 | . . . 1 Kinetic 7 | . . . 7 Thermal 1 | . . . 1 Explosive 19 | . 8 11 . Electromagnetic . | . . . . Robot Hit Streak 9 | . 1 2 9 Robot Miss Streak 2 | . 2 2 2 Penetration Max . | . . . . Secondary Targets . | . . . . Shots Hit Robots 11 | . 2 2 7 Core Hits 35 | . 14 9 12 Critical Hits . | . . . . Critical Kills . | . . . . Critical Parts Destroyed . | . . . . Melee Attacks . | . . . . Impact . | . . . . Slashing . | . . . . Piercing . | . . . . Sneak Attacks . | . . . . Combat Hostiles . | . . . . Follow-up Attacks . | . . . . Damage Inflicted 822 | . 403 224 195 Guns 146 | . . . 146 Cannons . | . . . . Explosions 626 | . 403 223 . Melee . | . . . . Ramming 26 | . . 1 25 Kinetic 146 | . . . 146 Thermal 24 | . . . 24 Explosive 626 | . 403 223 . Electromagnetic . | . . . . Impact . | . . . . Slashing . | . . . . Piercing . | . . . . Highest Corruption . | . . . . Average Corruption . | . . . . Corruption Purged . | . . . . Overload Shots . | . . . . Overflow Damage 16 | . 16 . . Projectiles . | . . . . Explosions 16 | . 16 . . Melee . | . . . . Knockbacks . | . . . . Impact . | . . . . Kinetic . | . . . . Secondary . | . . . . Self-Inflicted Damage 19 | . . 9 10 Shots 1 | . . 1 . Rammed 10 | . . . 10 Targets Rammed 14 | . . 2 12 Kicked 4 | . . 2 2 Crushed . | . . . . Highest Temperature 30 | . 4 1 30 Average Temperature 6 | . 4 1 16 Received Heat Transfer 816 | . 27 105 684 Siege Activations . | . . . . Robots Corrupted . | . . . . Combat Hostiles . | . . . . Parts Fried . | . . . . Impact Corruptions . | . . . . Robots Melted . | . . . . Combat Hostiles . | . . . . Parts Melted . | . . . . Heat Transferred 50 | . . . 50 Parts Sabotaged . | . . . . Parts Stolen . | . . . . Parts Stripped . | . . . . Power Chain Reactions . | . . . . Missiles Intercepted . | . . . . Alert | -11 -10 -9 -8 ------- Run | Scr Mat Mat Mat Peak Influence 147 | . 86 147 140 Initial 57 | . . 35 57 Average 65 | . 49 106 38 Maximum Alert Level . | . . . . Low Security (%) 100 | 100 100 100 100 Level 1 . | . . . . Level 2 . | . . . . Level 3 . | . . . . Level 4 . | . . . . Level 5 . | . . . . High Security . | . . . . Max Security . | . . . . Squads Dispatched 1 | . 1 . . Investigation . | . . . . Extermination . | . . . . Reinforcement 1 | . 1 . . Assault . | . . . . Garrison . | . . . . Intercept . | . . . . Construction Impeded . | . . . . Haulers Reinforced . | . . . . Stealth | -11 -10 -9 -8 --------- Run | Scr Mat Mat Mat Distress Signals 1 | . . 1 . Communications Jammed 1 | . . . 1 Distress Signals 1 | . . . 1 Times Spotted 27 | . 5 9 13 Peak Tracking Total 12 | . 3 7 12 Tactical Retreats 2 | . . . 2 Traps | -11 -10 -9 -8 ------- Run | Scr Mat Mat Mat Traps Triggered . | . . . . Indirectly . | . . . . Trap Hack Attempts . | . . . . Triggered . | . . . . Disarmed . | . . . . Reprogrammed . | . . . . Reused . | . . . . Traps Extracted . | . . . . Installed . | . . . . Triggered . | . . . . Machines | -11 -10 -9 -8 ---------- Run | Scr Mat Mat Mat Machines Disabled . | . . . . Max in Single Turn . | . . . . Machines Sabotaged . | . . . . Garrisons Compromised . | . . . . Overloaded Fab Kills . | . . . . Fab Network Shutdowns . | . . . . Hacking | -11 -10 -9 -8 --------- Run | Scr Mat Mat Mat Machines Accessed 1 | . . 1 . Terminals . | . . . . Fabricators . | . . . . Repair Stations 1 | . . 1 . Recycling Units . | . . . . Scanalyzers . | . . . . Garrison Access . | . . . . Total Hacks 1 | . . 1 . Successful 1 | . . 1 . Failed . | . . . . Catastrophic . | . . . . Database Lockouts . | . . . . Manual . | . . . . Terminals . | . . . . Fabricators . | . . . . Repair Stations 1 | . . 1 . Recycling Units . | . . . . Scanalyzers . | . . . . Garrison Access . | . . . . Terminal Hacks . | . . . . Fabricator Hacks . | . . . . Repair Station Hacks 1 | . . 1 . Scan Component 1 | . . 1 . Recycling Unit Hacks . | . . . . Scanalyzer . | . . . . Garrison Access Hacks . | . . . . Unauthorized Hacks . | . . . . Terminals . | . . . . Fabricators . | . . . . Repair Stations . | . . . . Recycling Units . | . . . . Scanalyzers . | . . . . Garrison Access . | . . . . Data Cores Recovered . | . . . . Used . | . . . . Hacking Detections . | . . . . Full Trace Events . | . . . . Feedback Events . | . . . . Feedback Blocked . | . . . . Robot Schematics Acquired . | . . . . Robots Built . | . . . . Matter . | . . . . Time . | . . . . Total Robot Build Rating . | . . . . Part Schematics Acquired . | . . . . Parts Built . | . . . . Matter . | . . . . Time . | . . . . Total Part Build Rating . | . . . . Parts Repaired . | . . . . Time . | . . . . Parts Recycled . | . . . . Recycled Matter . | . . . . Retrieved Matter . | . . . . Retrieved Components . | . . . . Parts Scanalyzed . | . . . . Part Schematics Acquired . | . . . . Parts Damaged . | . . . . Bothacking | -11 -10 -9 -8 ------------ Run | Scr Mat Mat Mat Used RIF Installer . | . . . . Robots Hacked . | . . . . Non-combat . | . . . . Combat . | . . . . Robot Hacks Applied . | . . . . Relay Couplers Released . | . . . . Robots Rewired . | . . . . Allies Hacked . | . . . . Hacks Repelled . | . . . . Allies | -11 -10 -9 -8 -------- Run | Scr Mat Mat Mat Total Allies . | . . . . Largest Group . | . . . . Highest-Rated Group . | . . . . Highest-Rated Ally . | . . . . Total Orders . | . . . . Ally Attacks . | . . . . Total Damage . | . . . . Kills . | . . . . Allies Corrupted . | . . . . Allies Melted . | . . . . Intel | -11 -10 -9 -8 ------- Run | Scr Mat Mat Mat Robot Analysis Total . | . . . . Derelict Logs Recovered . | . . . . Drone Launches . | . . . . Drone Recoveries . | . . . . Exploration | -11 -10 -9 -8 ------------- Run | Scr Mat Mat Mat Turns Passed 772 | 78 173 318 203 Spaces Moved 585 | 69 124 240 152 Core 113 | 27 . . 86 Treads . | . . . . Legs 472 | 42 124 240 66 Wheels . | . . . . Hover . | . . . . Flight . | . . . . Fastest Speed 50 | 50 120 120 50 Average Speed 110 | 92 120 120 96 Slowest Speed 250 | 120 120 120 250 Overloaded Moves . | . . . . Propulsion Burnouts . | . . . . Robots Hopped . | . . . . Cave-ins Triggered . | . . . . Exploration Rate (%) 19 | 5 31 23 17 Regions Visited 3 Branch Regions . Pre-discovered Areas . | . . . . Known Exits Taken . | . . . . Unknown Exits Taken 3 | 1 1 1 . Scrap Searched . | . . . . Spaces Dug . | . . . . Terrain Destroyed 102 | . 33 69 . Melee . | . . . . Projectile . | . . . . AOE 102 | . 33 69 . Terrain Rammed . | . . . . Walls Destroyed . | . . . . Machines Disabled . | . . . . Actions | -11 -10 -9 -8 --------- Run | Scr Mat Mat Mat Total 670 | 84 141 259 186 Wait . | . . . . Move 582 | 68 123 239 152 Hop . | . . . . Pick Up 23 | 8 4 4 7 Fast Attach . | . . . . Attach 14 | 6 3 2 3 Detach . | . . . . Swap 3 | . . . 3 Drop 7 | 2 3 1 1 Fire 27 | . 8 11 8 Melee . | . . . . Ram 8 | . . . 8 Kick 6 | . . 2 4 Crush . | . . . . Escape Stasis . | . . . . Rewire . | . . . . Trap . | . . . . Miscellaneous . | . . . . Route ------- -11/Scrapyard -10/Materials -9/Materials -8/Materials History --------- Turn | Location | Event 7 | -11/Scrapyard | Discovered new exit (range 14) 79 | -11/Scrapyard | Entered Materials 231 | -10/Materials | Discovered new exit (range 12) 252 | -10/Materials | Entered another Materials area 252 | -9/Materials | Evolved 2 slots: Utility x2 301 | -9/Materials | Build established: Mutant 556 | -9/Materials | Discovered new exit (range 12) 570 | -9/Materials | Entered another Materials area 570 | -8/Materials | Evolved 2 slots: Power x1, Weapon x1 695 | -8/Materials | Lost 4 parts (1p2n1w) 708 | -8/Materials | Core integrity fell below 50% 756 | -8/Materials | Lost 3 parts (3u) 761 | -8/Materials | Core integrity fell below 20% 773 | -8/Materials | Destroyed by G-50 Soldier with Heavy Laser Last Messages --------------- Aluminum Leg destroyed. Mining Laser destroyed. Slammed into G-47 Trooper. Kicked G-47 Trooper out of the way. Aluminum Leg destroyed. Acquired Imp. Medium Armor Plating. Slammed into G-47 Trooper. Destabilizing: Core damaged (-5). Slammed into G-47 Trooper. Terrain Scan Processor destroyed. Slammed into G-47 Trooper. Imp. Medium Armor Plating destroyed. K-01 Serf collects debris. Imp. Medium Armor Plating destroyed. K-01 Serf collects debris. Slammed into U-05 Engineer. U-05 Engineer distress signal jammed. Dropped Imp. Medium Armor Plating. Acquired Hpw. Shotgun. G-47 Trooper destroyed. Map ----- +----------------------------------------------------+ | ???????##?##### ############# #??????#??????? | | ??????????##!! #?#### #??????? | | ??????#???#! #?! ]!#??????? | | ???????? ?#! ########+#### # ] #??????? | | ??????????#! ###### ! # # #??????? | | ???????? ##! # # ! + + "T" [#??????? | | ??????"" ?##!! # # # # """ #??????? | | ???????????#### # #! """ # # !#??????? | | ??????????????# # # """ # #?######??????? | | ???????? ?#???# # # """ # #?????????????? | | ???????? ?###?# + = ######## #?#???????????? | | ???????##????## ############# #?????????????? | | ?? ######## #?# # #?????????????? | | ?? #?# """ """ # #???#?????????? | | ??? T / ### """ """ # ###????#??????? | | ?? / """ """ # #??####???????? | | ?? ! ######## ### # #??#??????????? | | ?????##?##?##?# #?# # #?#????????#??? | | ???????????#??# ### =# #?##??????##??? | | ??????????????# #?# # #????##?????#?? | | ????????#?#?### #######+##### ####???????#??? | | ???????? ? ###?#?##??#? | | ?????????? ##??###????? | | ?????????? g%g #??????????# | | ???????????##############g######+#####????#?#??? | | ????????????????#?# @g # #???##??#?? | | ??????????????????# r# ##???#??#?? | | ????????????#??#??# # """ #?##????#?? | | ??????????????????# !# """"" #????#?#??? | | ??????????????????# # """"" ##????????# | | ??????????????????# # """"" ##???#????? | | ?????????????????## # """ #?????#???? | | ??????????????????# # ##?????#??? | | ??????????????????########### #????#??#?? | | ??????????????????????##????##########????#????? | | ????????????????????????##?#??####?#???#???????? | | ???????????????????????#?????#??#???#?##???????? | | ???????????????????#?#?????????##???#???#?#????? | | ????????????????????????????#?##??#?#?????#????? | | ???????????????????#?#?????#?##?#?#?????#???#?#? | | ??????????????????????????#??????????#?#?????#?? | | ????????????????????????????#????#?##?##??#????? | | ??????????????????????"????#??????????#????????? | | ?????????????????????????????????????#???#?????? | | ??????????????????????????#???????????#????????? | | ????????????????????????????#??????????????????? | | ???????????????????????????????????????????????? | | ???????????????????????????????????????????????? | | ???????????????????????????????????????????????? | | ???????????????????????????????????????????????? | +----------------------------------------------------+ Best States ------------- Heat Dissipation 31 Energy Generation 10 Energy Capacity 125 Matter Stores 194 Matter Capacity 450 Sight Range 16 Terrain Scan Range 14 Terrain Scan Density 85 Jamming Range 8 Armor Coverage 450 Evasion (%) 50 Item Schematics ----------------- None Robot Schematics ------------------ None Fabricated ------------ Nothing Alien Tech Used ----------------- None Achievements -------------- None Challenges ------------ None Game ------ Seed AlphaRocketHammer Manual? 0 Play Time 00:10:53 Cumulative 2.0 hours Start 2020.11.07 @ 21:20:58 End 2020.11.07 @ 21:31:37 Sessions 1 Manual Loads 0 Difficulty Rogue Special Mode None Game No. 5 Rogue 5 Adventurer 0 Explorer 0 Win Type - Total 0 Types 0/0/0/0/0/0/0/0/0 Lore% 4 Gallery% 6 Achievement% 5 Wizard Run 0 Options --------- ASCII 0 Keyboard 0 Movement Arrows Keybinds 0 Fullscreen 1 Font 18/SmallcapsGlow Map View 76x50 Tactical HUD 0 Map Filters NONE Filters NONE Steam 1 RUN: 19acf3bb-f998-4e47-ad1e-380cdcde288c